Cogmind - Beta 15 @@@ ROGUE MODE // 2025.08.16 @ 13:29:59 Player: FrigidRock Result: Assimilated 0b10! Performance ------------- Evolutions (9) 4500 Regions Visited (29) 5800 Robots Destroyed (364) 1820 Value Destroyed (17863) 17863 Prototype IDs (42) 840 Alien Tech Used (4) 800 Bonus (22782) 22782 TOTAL SCORE: 54405 Bonus ------- High Alert Combat Kills 1746 Follower Combat Kills 4882 Entered Garrisons 1000 Used RIF Installer 2500 Network Hubs Disabled 200 Met Zhirov 300 Met R17 at Cetus 500 Met R17 at Research 2000 Met MAIN.C 5000 Used 0b10 Conduit 2000 Win 3000 Friendly Fire -346 Cogmind --------- Core Integrity 1032/1600 Matter 167/300 Energy 22/100 System Corruption 0% Temperature Cool (12) Movement Flying (27) Location 0b10 Command Parts ------- > --- POWER (2) -------- (None) > --- PROPULSION (5) --- Q-thruster Cooled Q-thruster Cooled Q-thruster > --- UTILITY (15) ----- Medium Storage Unit Quantum Shading Machine Experimental Targeting Computer Advanced Target Analyzer Layered Medium Armor Plating Advanced System Shield Relay Coupler [NC] (16) Improved System Guard > --- WEAPON (3) ------- (None) > --- INVENTORY (10) --- Quantum Reactor Advanced Point Defense System Terrabomb Enhanced Nova Cannon Helical Railgun Enhanced Hardcell Cannon Gamma Bomb Array Micro-nuke Launcher Peak State ------------ > --- POWER ------------ Micro Antimatter Reactor Light Quantum Reactor > --- PROPULSION ------- Centrium Leg Centrium Leg Centrium Leg Centrium Leg Cooled Q-thruster > --- UTILITY ---------- High-capacity Storage Unit Experimental Targeting Computer Advanced Target Analyzer Experimental Core Analyzer Experimental Transmission Jammer Phase Armor Advanced System Shield Relay Coupler [NC] Relay Coupler [Duelist] Relay Coupler [Sentry] Relay Coupler [Specialist] Relay Coupler [Hunter] > --- WEAPON ----------- Helical Railgun Linear Accelerator Enhanced Hardcell Cannon > --- INVENTORY -------- Quantum Reactor Biometal Leg Biometal Leg Advanced Coolant Injector Matter Compressor Quantum Shading Machine Advanced Point Defense System Hacking Suite Relay Coupler [Cutter] Relay Coupler [Brawler] Transdimensional Reconstructor Subatomic Replicator Terrabomb Terrabomb Enhanced Nova Cannon Helical Railgun Heavy Shock Bomb Launcher Fusion Bomb Launcher Improved Datajack Advanced Remote Datajack [Rating: 191] Favorites ----------- Power Quantum Reactor Engine Cooled Ion Engine Power Core Micro Fission Core Reactor Quantum Reactor Propulsion Aluminum Leg Treads Centrium Heavy Treads Leg Aluminum Leg Wheel Compact Wheel Flight Unit Cooled Q-thruster Utility High-capacity Storage Unit Device Advanced Heat Sink Storage High-capacity Storage Unit Processor Advanced Targeting Computer Hackware Relay Coupler [Sentry] Protection Hardened Medium Armor Plating Artifact Phase Armor Weapon Flak Gun Energy Gun Advanced Variable Charge Gun Energy Cannon Matter Neutralizer Ballistic Gun Flak Gun Ballistic Cannon Enhanced Hardcell Cannon Launcher Advanced EMP Blaster Special Weapon Improved Remote Datajack Special Melee Weapon Improved Datajack Build | -11 -10 -10 -9 -9 -8 -8 -8 -7 -7 -6 -6 -5 -5 -5 -5 -5 -5 -4 -4 -4 -4 -4 -4 -3 -3 -2 -2 -1 -1 ------- Run | Yrd Mat Min Mat Min Mat Sto Gar Fac Gar Fac Gar Fac Gar Ext Cet Arc Hub Fac Gar Fac Upp Upp Zhi Pro Res Res Qua Acc Com Slots Evolved 18 | . . . 2 . 2 . . 2 . 2 . 2 . . . . . 2 . . . . . . 2 2 . 2 . Power 1 | . . . . . . . . . . . . 1 . . . . . . . . . . . . . . . . . Propulsion 3 | . . . 1 . 1 . . 1 . . . . . . . . . . . . . . . . . . . . . Utility 13 | . . . 1 . 1 . . 1 . 2 . 1 . . . . . 2 . . . . . . 2 1 . 2 . Weapon 1 | . . . . . . . . . . . . . . . . . . . . . . . . . . 1 . . . Parts Attached 346 | 7 11 . 15 1 16 8 10 11 11 13 18 6 28 27 16 1 2 7 12 14 5 10 6 2 29 24 24 6 6 Power 45 | 1 3 . 3 1 2 1 1 1 . 1 1 1 5 6 3 . . . 1 2 . 1 1 . 1 2 5 1 1 Engine 17 | 1 2 . 2 1 1 1 1 1 . 1 1 . 4 1 . . . . . . . . . . . . . . . Core 11 | . 1 . 1 . 1 . . . . . . 1 1 5 . . . . . . . . . . . . 1 . . Reactor 17 | . . . . . . . . . . . . . . . 3 . . . 1 2 . 1 1 . 1 2 4 1 1 Propulsion 112 | 2 4 . 4 . 5 4 5 6 4 4 6 1 10 13 3 1 . . 2 2 2 5 3 1 10 4 9 . 2 Treads 13 | . . . . . 1 . . . . . . . . 1 3 1 . . 2 2 2 . . . 1 . . . . Leg 86 | 2 2 . 3 . 4 3 5 5 4 4 6 1 10 12 . . . . . . . 5 3 1 8 4 4 . . Wheel 4 | . 2 . 1 . . 1 . . . . . . . . . . . . . . . . . . . . . . . Hover . | . . . . . . . . . . . . . . . . . . . . . . . . . . . . . . Flight 9 | . . . . . . . . 1 . . . . . . . . . . . . . . . . 1 . 5 . 2 Utility 121 | 2 1 . 5 . 3 1 2 3 7 7 6 3 5 3 5 . 1 4 7 10 3 4 1 1 14 12 6 2 3 Device 36 | 2 1 . 2 . . . . . 1 . . 2 2 1 . . . 2 1 6 . 1 . . 7 6 1 1 . Storage 6 | . . . 1 . 1 . . . 1 . . . . . . . . 1 . . . . . . . 1 1 . . Processor 12 | . . . . . 1 . 1 1 . 1 . . . . . . . 1 2 . . . . . 1 1 1 . 2 Hackware 44 | . . . . . . 1 . 1 4 5 5 1 2 . 3 . 1 . 3 4 3 1 . 1 3 3 2 1 . Protection 22 | . . . 2 . 1 . 1 1 1 1 1 . 1 2 2 . . . 1 . . 2 1 . 3 1 . . 1 Artifact 1 | . . . . . . . . . . . . . . . . . . . . . . . . . . . 1 . . Weapon 68 | 2 3 . 3 . 6 2 2 1 . 1 5 1 8 5 5 . 1 3 2 . . . 1 . 4 6 4 3 . Energy Gun 13 | 1 1 . . . 1 1 . . . . 1 1 . 1 2 . . . . . . . . . 1 3 . . . Energy Cannon 12 | . 1 . . . 1 . . . . . . . 6 1 1 . . 1 . . . . . . . 1 . . . Ballistic Gun 17 | 1 1 . . . 4 . . . . . 3 . . 2 1 . . . 2 . . . . . 2 . 1 . . Ballistic Cannon 13 | . . . 2 . . . 2 . . 1 1 . . 1 . . 1 2 . . . . . . 1 1 1 . . Launcher 6 | . . . 1 . . 1 . . . . . . . . . . . . . . . . . . . . 1 3 . Special Weapon 6 | . . . . . . . . 1 . . . . 2 . 1 . . . . . . . 1 . . 1 . . . Impact Weapon . | . . . . . . . . . . . . . . . . . . . . . . . . . . . . . . Slashing Weapon . | . . . . . . . . . . . . . . . . . . . . . . . . . . . . . . Piercing Weapon . | . . . . . . . . . . . . . . . . . . . . . . . . . . . . . . Special Melee Weapon 1 | . . . . . . . . . . . . . . . . . . . . . . . . . . . 1 . . Unidentified Prototypes 31 | . . . 1 . 1 3 . . . . . . . . 4 . . . 4 1 . . 4 . 5 3 5 . . Corrupted Parts 2 | . . . . . . . . . . . . . 1 . . . . . . . . . . . . . 1 . . System Corruption 4 | . . . . . . . . . . . . . 1 . . . . . . . . . . . . . 3 . . Parts Lost 86 | . 2 . 3 . 2 4 2 2 1 . 11 1 15 2 1 . 1 1 7 1 2 5 . . 1 7 . 5 10 Power 13 | . 1 . . . 1 . 1 . 1 . 1 . 2 1 . . . . . . . 2 . . 1 1 . . 1 Propulsion 32 | . 1 . 1 . 1 4 . 1 . . 6 1 9 . . . . . 2 1 1 1 . . . . . . 3 Utility 28 | . . . 1 . . . 1 1 . . 1 . 2 . 1 . . 1 3 . . 2 . . . 6 . 4 5 Weapon 13 | . . . 1 . . . . . . . 3 . 2 1 . . 1 . 2 . 1 . . . . . . 1 1 Highest Loss Streak 9 | . 1 . 1 . 1 2 1 1 1 . 6 1 7 2 1 . 1 1 2 1 2 3 . . 1 5 . 3 9 To Critical Strikes . | . . . . . . . . . . . . . . . . . . . . . . . . . . . . . . Average Backups 16 | 1 3 5 8 9 9 9 9 9 17 19 18 19 19 19 19 19 18 18 17 19 19 19 20 20 19 18 19 9 9 Power 1 | . . 1 . 1 . 1 . 1 1 1 1 . . . 1 1 1 1 1 1 2 1 1 2 . 1 1 . . Propulsion 1 | . . 1 . . . . . . 2 2 1 . 1 . 1 2 2 2 . . . 1 2 1 1 1 . . . Utility 10 | . 1 3 2 2 3 3 3 4 11 14 14 16 15 16 12 11 11 10 9 14 13 13 12 12 11 9 8 2 1 Weapon 2 | . . . 4 5 4 3 2 2 . . . 1 . . 3 4 3 5 5 3 2 1 3 1 2 3 4 3 4 Tool/Special . | . . . . . . . . . . . . . . . . . . . . . . . . . . . . . . Unused Backups 47 | . . . 3 . 5 . . 1 3 . 6 . 1 1 . . . . 3 . . . 1 . 8 3 5 1 6 Power 4 | . . . 1 . . . . . . . . . . . . . . . . . . . . . 2 . . . 1 Propulsion 7 | . . . . . . . . . 1 . 1 . . . . . . . . . . . 1 . 2 1 . 1 . Utility 25 | . . . . . 1 . . . 2 . 5 . 1 1 . . . . 3 . . . . . 4 1 5 . 2 Weapon 7 | . . . 2 . 3 . . . . . . . . . . . . . . . . . . . . 1 . . 1 Tool/Special 4 | . . . . . 1 . . 1 . . . . . . . . . . . . . . . . . . . . 2 Average Slot Usage (%) 94 | . 100 100 98 100 96 94 99 97 100 99 97 94 89 93 87 87 88 87 87 85 92 93 88 99 99 97 96 88 75 Engine 3 | . 12 14 10 11 1 8 8 7 7 6 5 1 5 1 . . . . . . . . . . . . . . . Core 1 | . 1 . . . 6 . . . . . . 4 3 7 2 . . . . . . . . . . . . 3 . Reactor 4 | . . . . . . . . . . . . . . . 8 11 11 10 10 10 10 9 10 10 8 8 7 4 3 Treads 3 | . . . . . 4 4 . . . . . . . . 9 13 17 15 14 14 19 10 . . . . . . . Leg 20 | . 22 . 25 33 28 26 36 33 38 33 31 28 25 26 8 2 . . . . . 12 26 25 22 20 19 . . Device 6 | . 28 28 13 11 9 9 2 3 1 . . 5 5 10 9 11 11 9 8 5 . . . . 8 10 4 6 4 Storage 5 | . . . 10 11 9 9 9 7 7 6 6 5 5 5 5 5 5 5 5 5 5 5 5 5 4 4 4 4 4 Processor 9 | . . . . . 8 9 6 7 7 12 13 11 11 11 9 5 5 9 10 10 10 10 10 10 9 8 13 12 15 Hackware 18 | . . . . . . . 9 10 17 21 24 23 19 11 14 11 16 15 21 26 30 28 26 26 27 25 26 32 19 Protection 4 | . . . 8 11 9 9 8 6 3 4 1 . . 4 3 11 5 9 5 . 4 5 7 9 4 3 . . 3 Energy Cannon 1 | . 1 14 . . . 1 . . . . . . 6 4 1 . . . . 3 2 . . . . . . 2 . Ballistic Gun 3 | . 18 14 . . 14 9 13 . . . 3 2 . 3 3 5 1 . 1 . 1 1 . 1 3 3 3 . . Ballistic Cannon 4 | . . . 20 22 2 . . 13 9 7 6 5 1 . . . 5 5 5 2 . . . 3 3 3 6 . . Special Weapon 1 | . . . . . . . . . 2 4 1 2 . . 1 . . 3 1 3 3 3 2 . . 2 . 1 . Peak Build Rating 191 | 9 11 9 19 17 28 28 30 43 55 61 69 75 80 90 120 119 120 125 140 132 113 120 118 123 146 167 191 170 148 Average Rating 87 | 4 9 9 16 17 24 26 28 38 47 56 63 69 68 82 110 117 116 121 132 115 110 109 101 121 138 153 179 155 135 On Entrance 77 | . 9 9 9 17 17 28 28 30 43 45 61 64 72 48 89 119 118 115 124 125 109 113 104 118 123 142 166 162 117 Naked Turns . | . . . . . . . . . . . . . . . . . . . . . . . . . . . . . . Heaviest Build 145 | 8 10 10 33 33 34 39 42 44 73 66 70 78 77 85 106 106 110 116 118 110 89 92 78 90 115 123 145 55 51 Greatest Support 188 | 20 26 26 42 30 43 49 49 66 81 84 90 81 81 98 160 188 188 188 188 183 159 159 135 140 146 146 148 55 56 Greatest Overweight (x) 3 | 1 . . 1 1 1 2 1 . . . 1 1 3 1 . . . . . 1 . 1 . . 1 . 1 . . Average Overweight (x) . | . . . . 1 . . . . . . . . . . . . . . . . . . . . . . . . . Largest Inventory Capacity 20 | 5 5 5 10 10 10 10 10 10 20 20 20 20 20 20 20 20 20 20 20 20 20 20 20 20 20 20 20 10 10 Average Capacity 17 | 5 5 5 9 10 10 10 10 10 19 20 20 20 20 20 20 20 20 20 20 20 20 20 20 20 20 20 19 10 10 Most Carried 20 | 2 5 5 10 10 10 10 10 10 20 20 20 20 20 20 20 20 20 20 20 20 20 20 20 20 20 20 20 10 10 Average Carried 16 | 1 3 5 8 9 9 9 9 9 17 19 18 19 19 19 19 20 19 19 17 19 19 19 19 19 19 18 19 9 9 Final Capacity 20 | 5 5 5 10 10 10 10 10 10 20 20 20 20 20 20 20 20 20 20 20 20 20 20 20 20 20 20 10 10 10 Final Carried 20 | 2 5 5 9 10 10 9 9 10 20 20 20 20 19 20 20 20 20 20 20 19 20 19 20 20 20 20 10 10 8 Class Distribution -------------------- 43% | Botlord-Mutant 21% | Bothacker-Mutant 12% | Scavenger-Mutant 11% | Mutant 7% | Botlord-Gunner Dominant Class ---------------- Scavenger-Mutant | -10/Materials Scavenger-Mutant | -10/Mines Scavenger-Mutant | -9/Materials Scavenger-Mutant | -9/Mines Scavenger-Mutant | -8/Materials Mutant | -8/Storage Mutant | -8/Garrison Scavenger-Mutant | -7/Factory Bothacker-Mutant | -7/Garrison Bothacker-Mutant | -6/Factory Bothacker-Mutant | -6/Garrison Bothacker-Mutant | -5/Factory Bothacker-Mutant | -5/Garrison Botlord-Mutant | -5/Extension Botlord-Mutant | -5/Cetus Botlord-Mutant | -5/Archives Botlord-Mutant | -5/Hub_04(d) Botlord-Mutant | -4/Factory Botlord-Mutant | -4/Garrison Botlord-Mutant | -4/Factory Botlord-Mutant | -4/Upper Caves Botlord-Mutant | -4/Upper Caves Botlord-Mutant | -4/Zhirov Botlord-Mutant | -3/Proximity Caves Botlord-Mutant | -3/Research Botlord-Gunner | -2/Research Botlord-Gunner | -2/Quarantine Scavenger-Sprinter | -1/Access Scavenger-Sprinter | -1/Command Resources | -11 -10 -10 -9 -9 -8 -8 -8 -7 -7 -6 -6 -5 -5 -5 -5 -5 -5 -4 -4 -4 -4 -4 -4 -3 -3 -2 -2 -1 -1 ----------- Run | Yrd Mat Min Mat Min Mat Sto Gar Fac Gar Fac Gar Fac Gar Ext Cet Arc Hub Fac Gar Fac Upp Upp Zhi Pro Res Res Qua Acc Com Matter Collected 15169 | 154 254 33 409 112 670 387 731 486 628 306 985 347 813 639 347 61 155 369 1074 1002 190 227 . 247 944 1225 1828 274 272 Remotely . | . . . . . . . . . . . . . . . . . . . . . . . . . . . . . . Salvage Created 14699 | 49 318 21 474 . 969 493 840 604 593 247 483 84 952 686 76 90 1238 406 1084 516 69 331 . 130 680 773 1302 524 667 Parts 700 | 8 30 . 46 . 49 23 55 24 31 6 24 8 26 23 3 4 49 15 46 21 5 18 . 10 17 43 59 18 39 Haulers Intercepted 11 | . 1 . . . 3 2 . . . 1 . . . . . . 1 . . 1 . . . . 1 . 1 . . Recyclers Shooed 12 | . . . . . 2 1 . 1 . . . 1 . 1 . . . . . 2 . . . . . . 1 1 2 Parts Field Recycled . | . . . . . . . . . . . . . . . . . . . . . . . . . . . . . . Retrieved Matter . | . . . . . . . . . . . . . . . . . . . . . . . . . . . . . . Parts Self-Destructed 52 | . . . . . . . . . . . . . . . . . . . . . 16 20 . 16 . . . . . Prevented . | . . . . . . . . . . . . . . . . . . . . . . . . . . . . . . Kills | -11 -10 -10 -9 -9 -8 -8 -8 -7 -7 -6 -6 -5 -5 -5 -5 -5 -5 -4 -4 -4 -4 -4 -4 -3 -3 -2 -2 -1 -1 ------- Run | Yrd Mat Min Mat Min Mat Sto Gar Fac Gar Fac Gar Fac Gar Ext Cet Arc Hub Fac Gar Fac Upp Upp Zhi Pro Res Res Qua Acc Com Combat Hostiles Destroyed 271 | . 6 . 17 . 25 6 25 14 15 1 12 2 18 11 1 1 7 7 23 4 3 7 . 3 8 11 18 12 14 Melee 1 | . . . . . . . . . . . . . . . . . . . . . 1 . . . . . . . . Guns 86 | . 6 . . . 16 6 14 . . . 7 . 4 2 1 1 1 . 5 . 1 7 . 2 4 5 4 . . Cannons 112 | . . . 10 . 1 . . 9 8 1 5 2 13 6 . . 6 6 18 3 1 . . 1 4 6 10 1 1 AOE 63 | . . . 7 . 8 . 11 3 7 . . . . . . . . . . . . . . . . . 4 11 12 Classes Destroyed 21 | 1 4 . 5 . 1 1 1 2 . . 1 . 1 . . . . . 1 . . . . . 2 . . 1 . Worker 23 | . 2 1 1 . 1 . . 2 . 1 . . . . . . 8 1 . 1 . . . . . . . 2 3 Builder 11 | . . . 2 . . 1 . 1 . . . . . . . . 4 . . . . . . . . 1 2 . . Tunneler 6 | 3 1 . . . . . . . . . . . . . . . 2 . . . . . . . . . . . . Hauler 11 | . 1 . . . 3 2 . . . 1 . . . . . . 1 . . 1 . . . . 1 . 1 . . Recycler 16 | . . . 1 . 1 1 . . . 1 . . . . . . 5 . . 2 . . . . . . 2 1 2 Operator 9 | . . . 1 . 2 . . . . 1 . . . . . . 1 . . 1 . . . . 1 . 2 . . Watcher 10 | . . . 2 . 1 1 . . . . . . . 1 . . 2 . . 1 . . . . . 1 1 . . Swarmer 74 | . 2 . 8 . 8 . 10 . 3 . . . . . . . 4 1 3 2 3 4 . 2 . . 5 7 12 Cutter 3 | . . . . . . . . . . . . . . . . . . . . . . . . . . . . 3 . Grunt 93 | . 4 . 6 . 8 3 7 10 9 . 6 . 13 6 . . 3 3 9 . . . . . 2 . 4 . . Brawler 4 | . . . . . . 1 1 2 . . . . . . . . . . . . . . . . . . . . . Duelist 1 | . . . . . . . . 1 . . . . . . . . . . . . . . . . . . . . . Protector 1 | . . . . . . . . 1 . . . . . . . . . . . . . . . . . . . . . Sentry 32 | . . . 3 . 7 2 6 . . . 2 . 2 4 . 1 . . 1 . . . . . 2 2 . . . Demolisher 1 | . . . . . . . . . . . . . . . . . . . . . . . . . 1 . . . . Specialist 4 | . . . . . . . . . . . . . 1 . . . . . . . . . . . . . 3 . . Hunter 15 | . . . . . 2 . . . . . 1 . . 1 . . . 1 1 . . . . 1 3 2 3 . . Programmer 39 | . . . . . . . 1 1 3 1 2 2 2 . . . . 2 6 2 . . . . . 8 3 4 2 Behemoth 3 | . . . . . . . . . . . 1 . . . . . . . 1 . . . . . . 1 . . . Cetus Guard 1 | . . . . . . . . . . . . . . . 1 . . . . . . . . . . . . . . Striker 1 | . . . . . . . . . . . . . . . . . . . . . . . . . 1 . . . . Executioner 2 | . . . . . . . . . . . . . . . . . . . 2 . . . . . . . . . . Thug 3 | . . . . . . . . . . . . . . . . . . . . . . 3 . . . . . . . Savage 1 | . . . . . . . . . 1 . . . . . . . . . . . . . . . . . . . . Best Kill Streak 19 | 3 5 1 6 . 5 5 8 5 4 2 3 2 3 3 1 1 19 5 7 1 2 4 . 1 2 3 6 8 9 Combat Bots Only 8 | . 3 . 5 . 4 3 8 5 4 1 3 2 3 3 1 1 4 4 7 1 2 4 . 1 2 3 5 8 6 Max Kills in Single Turn 16 | 1 1 1 5 . 4 2 4 4 3 2 2 1 1 1 1 1 16 1 1 1 1 2 . 1 1 2 5 3 5 Gunslinging 1 | . . . . . . . . . . . . . . . . . . . . . . 1 . . . . . . . Exploded 4 | . . . 4 . 4 . 4 1 3 . . . . . . . . . . . . . . . . . 4 3 3 Melee 1 | . . . . . . . . . . . . . . . . . . . . . 1 . . . . . . . . Uniques/NPCs Destroyed . | . . . . . . . . . . . . . . . . . . . . . . . . . . . . . . Combat | -11 -10 -10 -9 -9 -8 -8 -8 -7 -7 -6 -6 -5 -5 -5 -5 -5 -5 -4 -4 -4 -4 -4 -4 -3 -3 -2 -2 -1 -1 -------- Run | Yrd Mat Min Mat Min Mat Sto Gar Fac Gar Fac Gar Fac Gar Ext Cet Arc Hub Fac Gar Fac Upp Upp Zhi Pro Res Res Qua Acc Com Hostile Shots Fired 1788 | . 41 16 71 . 86 30 76 36 67 16 229 33 180 86 27 5 16 54 196 35 29 66 . 11 27 125 101 39 90 Missed 565 | . 6 6 18 . 28 5 19 10 20 8 86 14 43 31 11 . 4 16 56 10 8 24 . 4 7 44 31 12 44 Hits 1223 | . 35 10 53 . 58 25 57 26 47 8 143 19 137 55 16 5 12 38 140 25 21 42 . 7 20 81 70 27 46 Melee 3 | . . . . . . . . . . . . . . . . . . . . . 1 . . . . . . 2 . Projectile 1220 | . 35 10 53 . 58 25 57 26 47 8 143 19 137 55 16 5 12 38 140 25 20 42 . 7 20 81 70 25 46 AOE 6 | . 1 1 . . . . . . . . . . . . . . . 2 . . . . . . . . . 2 . Critical Strikes 59 | . 1 . 3 . 2 2 2 . 1 . 5 1 5 2 6 1 1 1 15 1 1 3 . . 1 2 1 2 . Actively Blocked 2 | . . . . . . . . . . . . . . 1 . 1 . . . . . . . . . . . . . Part Disruptions 3 | . . 1 . . . . 1 . 1 . . . . . . . . . . . . . . . . . . . . Damage Taken 24187 | . 567 148 663 . 768 383 1051 551 799 166 2208 388 2422 959 374 200 318 965 3257 616 383 888 . 137 331 1640 1730 828 1447 Core 3319 | . 143 17 109 . 47 16 222 18 130 5 293 82 300 91 56 . . 67 453 52 15 . . . . 107 528 234 334 Absorbed by Shields 1032 | . . . . . . . 4 . . . . 76 12 197 90 . . . . 177 . . . . 225 251 . . . Reduced by Siege Mode 155 | . . . . . . . . . . . . . . . 15 . . . 121 19 . . . . . . . . . Redirected to Core 401 | . . . . . . . . . . . . . . . . . . . . . . . . . . . 401 . . Redirected to Shielding 135 | . . . . . . . . . . . . . . 50 . 23 . 31 . . . . . 22 9 . . . . Regen/Repaired (Parts) 377 | . . . . . . . . . . . . . . . . . . . 283 . . . . . . 94 . . . Core Remaining (%) 64 | 100 . 36 . 72 . . 48 . 78 . 64 . . . . . 47 . . . . . . 48 100 . 56 . 64 Volleys Fired 1079 | 12 30 1 31 1 59 35 59 33 49 23 89 19 84 71 17 5 22 20 82 60 12 16 . 8 62 74 56 24 25 Largest 3 | 2 2 2 2 1 2 2 2 2 2 2 2 2 2 2 2 2 2 2 2 2 2 2 . 2 2 3 3 2 2 Hottest 216 | 70 70 80 74 37 75 130 64 88 88 88 88 75 210 138 115 115 124 152 138 163 118 118 . 138 96 216 216 172 172 Shots Fired 1790 | 24 60 2 58 1 106 64 101 53 65 34 128 26 138 114 17 7 44 36 137 77 15 28 . 13 90 151 143 26 32 Gun 682 | 24 60 1 . . 94 57 75 . . . 51 7 17 48 13 6 8 . 34 6 3 24 . 9 30 72 43 . . Cannon 894 | . . 1 55 1 6 7 . 46 40 23 62 15 106 61 . . 36 36 99 53 5 . . 1 52 72 97 9 11 Launcher 87 | . . . 3 . 6 . 26 6 10 . . . . . . . . . . . . . . . . . 1 14 21 Special 127 | . . . . . . . . 1 15 11 15 4 15 5 4 1 . . 4 18 7 4 . 3 8 7 2 3 . Kinetic 1171 | 12 37 1 55 1 99 32 73 46 40 23 112 22 30 48 12 4 37 19 116 24 2 12 . 5 82 101 126 . . Thermal 391 | 12 23 1 . . 1 30 . . . . 1 . 84 60 1 2 7 17 17 35 6 12 . 5 . 43 14 9 11 Explosive 28 | . . . 3 . 6 . . . . . . . . . . . . . . . . . . . . . 1 8 10 Electromagnetic 73 | . . . . . . 2 28 6 10 . . . 9 1 . . . . . . . . . . . . . 6 11 Robot Hit Streak 27 | 5 9 3 9 . 11 20 12 8 8 11 20 3 14 10 9 5 10 15 27 16 7 11 . 7 15 14 11 3 8 Robot Miss Streak 9 | 2 3 . 4 1 9 6 6 5 4 3 5 8 3 6 2 1 2 3 2 3 3 2 . 3 2 3 5 2 4 Penetration Max 2 | . . . . . . . . . . . 1 . 1 1 1 . . . . . 1 1 . . . . 2 . . Secondary Targets 6 | . 2 . . . 1 . . . . . 1 . . . . . . . . . 1 1 . . . . . . . Max Gunslinging Chain 1 | . 1 . . . 1 . . . . . 1 . . . . . . . . . 1 1 . . . . . . . Shots Hit Robots 1087 | 16 36 1 34 . 91 44 58 36 34 25 87 14 94 55 14 6 20 20 89 52 11 21 . 8 44 82 76 5 14 Core Hits 795 | 5 19 1 26 . 124 38 83 41 29 21 64 5 33 17 6 1 39 8 40 13 3 12 . 3 18 30 46 28 42 Critical Kills 15 | . . . . . . . . . . . . . 1 4 . 1 . 1 . 1 . 1 . . 1 1 3 . 1 Critical Parts Destroyed 14 | . . . . . . . . . . . 1 . . 3 4 1 . . 1 . . . . . 1 1 2 . . Critical Strikes 62 | 1 . . 3 . 1 . . . . 1 1 . 1 7 5 2 3 2 6 2 . 1 . 1 2 9 13 . 1 Burn 1 | 1 . . . . . . . . . . . . . . . . . . . . . . . . . . . . . Meltdown 7 | . . . . . . . . . . . . . 1 3 . . . 1 . 1 . . . . . . . . 1 Destroy 24 | . . . . . . . . . . . 1 . . 4 5 2 . . 1 . . 1 . . 2 3 5 . . Blast 30 | . . . 3 . 1 . . . . 1 . . . . . . 3 1 5 1 . . . 1 . 6 8 . . Melee Attacks . | . . . . . . . . . . . . . . . . . . . . . . . . . . . . . . Impact . | . . . . . . . . . . . . . . . . . . . . . . . . . . . . . . Slashing . | . . . . . . . . . . . . . . . . . . . . . . . . . . . . . . Piercing . | . . . . . . . . . . . . . . . . . . . . . . . . . . . . . . Sneak Attacks . | . . . . . . . . . . . . . . . . . . . . . . . . . . . . . . Combat Hostiles . | . . . . . . . . . . . . . . . . . . . . . . . . . . . . . . Follow-up Attacks . | . . . . . . . . . . . . . . . . . . . . . . . . . . . . . . Damage Inflicted 40822 | 172 394 18 1272 . 2107 935 1933 1877 1030 639 1965 338 2717 1656 387 151 3284 957 4171 1495 168 595 . 139 1499 2821 3342 2008 2752 Guns 10791 | 167 394 . . . 1529 779 1022 . . . 844 104 207 498 387 151 178 . 697 126 118 595 . 103 594 1440 858 . . Cannons 19366 | . . 18 869 . 124 125 . 951 563 639 1121 234 2510 1144 . . 730 957 3474 1315 39 . . 36 905 1342 2070 44 156 Explosions 10501 | . . . 399 . 454 27 911 926 467 . . . . . . . 2369 . . . . . . . . . 388 1964 2596 Melee . | . . . . . . . . . . . . . . . . . . . . . . . . . . . . . . Ramming 164 | 5 . . 4 . . 4 . . . . . . . 14 . . 7 . . 54 11 . . . . 39 26 . . Kinetic 22760 | 67 201 . 869 . 1653 479 1022 951 563 639 1965 338 620 498 387 96 762 402 3849 809 92 319 . 64 1499 2109 2507 . . Thermal 8082 | 100 193 18 . . . 442 63 365 56 . . . 1980 1128 . 55 213 555 322 632 65 276 . 75 . 673 421 44 406 Explosive 4321 | . . . 399 . 454 . . . . . . . . . . . . . . . . . . . . . 388 1672 1408 Electromagnetic 5495 | . . . . . . 10 848 561 411 . . . 117 16 . . 2302 . . . . . . . . . . 292 938 Impact . | . . . . . . . . . . . . . . . . . . . . . . . . . . . . . . Slashing . | . . . . . . . . . . . . . . . . . . . . . . . . . . . . . . Piercing . | . . . . . . . . . . . . . . . . . . . . . . . . . . . . . . Highest Corruption 18 | . 2 2 . . . . 3 . 2 . 2 5 10 18 18 18 18 4 5 5 5 5 5 5 2 2 12 1 1 Average Corruption 6 | . 2 2 . . . . 2 . 1 . 1 4 7 13 18 18 18 3 4 5 5 5 5 5 2 2 7 1 1 Corruption Purged . | . . . . . . . . . . . . . . . . . . . . . . . . . . . . . . Corruption Blocked . | . . . . . . . . . . . . . . . . . . . . . . . . . . . . . . Effects 362 | . 6 1 . . . . 19 . 8 . 8 14 38 62 16 5 30 5 23 45 15 13 3 10 12 4 24 1 . Message Errors 80 | . 2 . . . . . 4 . . . 3 5 9 14 3 . 6 2 6 11 3 5 . 3 3 . 1 . . Matter Fused 83 | . 1 . . . . . 5 . 1 . 2 2 12 14 5 . 6 . 4 12 4 4 1 4 3 . 3 . . Heat Flow Errors 36 | . 1 . . . . . . . 2 . 1 2 3 2 3 2 2 1 3 6 1 . . 2 . 1 4 . . Energy Discharges 47 | . . . . . . . 4 . 2 . . 2 2 6 . 2 7 . 3 5 2 2 . 1 2 1 6 . . Parts Rejected 7 | . . . . . . . . . . . . . 1 1 1 1 . . 1 1 . . . . . . 1 . . Parts Fused 5 | . . . . . . . 1 . 1 . . . . . 1 . 1 . . . . 1 . . . . . . . Data Loss (minor) 46 | . 2 1 . . . . 1 . 1 . 1 2 1 15 1 . 3 1 2 5 3 1 2 . . 1 3 . . Data Loss (major) 13 | . . . . . . . 2 . . . . . 2 2 . . 2 . 2 1 . . . . 1 . 1 . . Misfires 15 | . . . . . . . 2 . 1 . . . 2 1 . . 1 . 1 2 2 . . . 2 . 1 . . Alerts 12 | . . . . . . . . . . . . . 3 3 1 . . . . 1 . . . . . . 3 1 . Misdirections 1 | . . . . . . . . . . . . . . . . . 1 . . . . . . . . . . . . Weapon Failures 17 | . . . . . . . . . . . 1 1 3 4 1 . 1 1 1 1 . . . . 1 1 1 . . Overload Shots . | . . . . . . . . . . . . . . . . . . . . . . . . . . . . . . Overflow Damage 807 | . . . 4 . 9 . . 57 12 15 . 25 28 22 . . 142 40 83 25 . . . . 21 59 38 79 148 Projectiles 410 | . . . 4 . . . . 30 . 15 . 25 28 22 . . 24 40 83 25 . . . . 21 59 34 . . Explosions 397 | . . . . . 9 . . 27 12 . . . . . . . 118 . . . . . . . . . 4 79 148 Melee . | . . . . . . . . . . . . . . . . . . . . . . . . . . . . . . Knockbacks 99 | . . . 8 . . . . 11 8 6 3 . 5 . . . 4 6 23 2 . . . . 5 5 13 . . Impact 2 | . . . . . . . . . . . . . . . . . . . . 1 . . . . . 1 . . . Kinetic 87 | . . . 6 . . . . 11 8 6 3 . 5 . . . 3 4 19 1 . . . . 5 4 12 . . Secondary 10 | . . . 2 . . . . . . . . . . . . . 1 2 4 . . . . . . . 1 . . Self-Inflicted Damage 856 | . . . 48 . . . 192 124 139 . . . . . . . 96 . . . . . . . . . 13 95 149 Shots 31 | . . . 1 . . . 12 3 5 . . . . . . . 1 . . . . . . . . . 1 1 7 Rammed 6 | . . . . . . . . . . . . . . . . . . . . 5 1 . . . . . . . . Targets Rammed 15 | 1 . . 1 . . 1 . . . . . . . 1 . . 1 . . 5 1 . . . . 2 2 . . Kicked 8 | 1 . . 1 . . 1 . . . . . . . 1 . . . . . . . . . . . 2 2 . . Crushed 1 | . . . . . . . . . . . . . . . . . 1 . . . . . . . . . . . . Highest Temperature 442 | 200 345 38 184 2 36 166 30 141 243 . 121 251 442 284 232 268 191 195 382 279 278 321 . 232 204 365 308 208 305 Average Temperature 80 | 101 169 18 61 1 11 47 11 40 62 . 19 118 120 39 88 125 48 70 96 92 112 126 . 82 53 82 67 68 95 Received Heat Transfer 5075 | . 264 85 261 . 198 198 360 225 210 15 534 8 835 195 . 18 36 45 1094 73 27 156 . . 31 99 72 . 36 Effects 9 | . 2 . . . . . . . . . . . 3 . . . . . 2 2 . . . . . . . . . Shutdowns 2 | . . . . . . . . . . . . . 1 . . . . . 1 . . . . . . . . . . Energy Bleed 2 | . 1 . . . . . . . . . . . . . . . . . 1 . . . . . . . . . . Interference 3 | . . . . . . . . . . . . . 1 . . . . . . 2 . . . . . . . . . Short Circuit 1 | . . . . . . . . . . . . . 1 . . . . . . . . . . . . . . . . Damage (minor) 1 | . 1 . . . . . . . . . . . . . . . . . . . . . . . . . . . . Siege Activations 5 | . . . . . . . . . . . . . . . 1 . . . 3 1 . . . . . . . . . Total Turns 74 | . . . . . . . . . . . . . . . 14 . . . 55 5 . . . . . . . . . Longest Duration 28 | . . . . . . . . . . . . . . . 14 . . . 28 5 . . . . . . . . . Martial Activations . | . . . . . . . . . . . . . . . . . . . . . . . . . . . . . . Shielding Activations . | . . . . . . . . . . . . . . . . . . . . . . . . . . . . . . Robots Disrupted 1 | . . . . . . . . . . . . . . . . . . . . . . . . . . . . . 1 Combat Hostiles 1 | . . . . . . . . . . . . . . . . . . . . . . . . . . . . . 1 Robots Corrupted 5 | . . . . . . . . 2 . . . . . . . . 2 1 . . . . . . . . . . . Combat Hostiles 2 | . . . . . . . . 2 . . . . . . . . . . . . . . . . . . . . . Parts Fried 31 | . . . . . . . 2 9 . . . . . . . . 13 2 . . . . . . 1 . . 2 2 Impact Corruptions 1 | . . . . . . . . . . . . . . . . . . 1 . . . . . . . . . . . Robots Melted 7 | . . . . . . . . . . . . . 1 3 . . . 1 . 1 . . . . . . . . 1 Combat Hostiles 7 | . . . . . . . . . . . . . 1 3 . . . 1 . 1 . . . . . . . . 1 Parts Melted 21 | 1 . . . . . . . . 2 . . . 3 5 . . . 4 1 2 . 2 . . 1 . . . . Heat Transferred 9520 | 370 555 37 . . . 790 50 250 50 . . . 2382 1147 . 74 335 518 370 629 74 370 . 111 . 740 370 37 261 Parts Sabotaged . | . . . . . . . . . . . . . . . . . . . . . . . . . . . . . . Parts Stolen . | . . . . . . . . . . . . . . . . . . . . . . . . . . . . . . Parts Stripped . | . . . . . . . . . . . . . . . . . . . . . . . . . . . . . . Power Chain Reactions 11 | . . . . . . 1 3 . 2 . . . . . . . 3 . . . . . . . . . . 1 1 Alert | -11 -10 -10 -9 -9 -8 -8 -8 -7 -7 -6 -6 -5 -5 -5 -5 -5 -5 -4 -4 -4 -4 -4 -4 -3 -3 -2 -2 -1 -1 ------- Run | Yrd Mat Min Mat Min Mat Sto Gar Fac Gar Fac Gar Fac Gar Ext Cet Arc Hub Fac Gar Fac Upp Upp Zhi Pro Res Res Qua Acc Com Maximum Alert Level 4 | . . . 1 . 1 . 3 3 4 2 2 2 3 2 1 1 3 2 3 2 . . . . . . 2 3 4 Low Security (%) 40 | 100 100 100 87 100 54 100 21 . . 5 6 8 . . . 28 98 27 1 74 . . . . 100 100 72 . . Level 1 29 | . . . 12 . 45 . 5 . . 76 89 89 28 79 100 71 . 56 50 11 . . . . . . 5 35 . Level 2 15 | . . . . . . . 17 55 19 18 4 1 62 19 . . . 15 18 13 . . . . . . 22 23 12 Level 3 14 | . . . . . . . 54 44 76 . . . 9 . . . 1 . 28 . . . . . . . . 40 85 Level 4 . | . . . . . . . . . 4 . . . . . . . . . . . . . . . . . . . 2 Level 5 . | . . . . . . . . . . . . . . . . . . . . . . . . . . . . . . High Security . | . . . . . . . . . . . . . . . . . . . . . . . . . . . . . . Max Security . | . . . . . . . . . . . . . . . . . . . . . . . . . . . . . . Peak Influence 1178 | 10 70 15 274 103 397 171 1082 864 1178 618 599 412 705 481 325 233 930 455 1017 533 . . . . 75 95 521 875 1128 Initial 618 | . . . 1 103 5 159 38 567 554 618 180 314 275 348 254 106 70 455 201 533 . . . . . 24 51 294 466 Average 326 | 1 21 4 120 58 200 41 619 648 926 322 328 287 510 333 263 190 104 252 497 177 . . . . 19 36 213 557 765 Influence Increases 14998 | 15 174 20 513 1 778 228 1064 913 794 184 839 468 760 833 221 167 1172 530 996 377 95 127 . 114 466 540 872 805 932 Destroy 0b10 Robot/C 6900 | . 120 . 340 . 500 120 600 480 380 60 360 260 380 420 120 80 180 280 500 80 60 80 . 60 200 220 440 300 280 Destroy 0b10 Robot/NC 470 | 15 20 5 35 . 40 25 5 25 . 20 . 15 . 10 5 . 110 5 5 30 . . . . 10 10 40 15 25 Destroy Leader 942 | . 22 . 74 . 148 46 30 80 10 12 10 30 10 62 10 . 36 30 40 44 10 10 . 10 42 62 44 40 30 Allied During Kill 1072 | . . . . . . . 30 110 26 40 79 57 18 70 72 30 11 113 34 72 25 37 . 14 62 20 63 89 . Trap Triggered on 0b10 60 | . . . . . . . . . . . . . . . . . 60 . . . . . . . . . . . . Successful Hack 485 | . 12 . 5 . . . 32 45 18 21 . 16 . 11 . . 26 44 . 35 . . . . 79 75 24 28 14 Disable Machine 975 | . . . 15 . 15 30 . 120 15 15 . . . 75 . 45 375 30 30 45 . . . . . . 105 45 15 Anti-Garrison Action 1100 | . . . . . . . 150 . 250 . 300 . 150 . . . . . 250 . . . . . . . . . . Destroy Structure 1989 | . . . 44 1 45 7 67 23 65 1 60 30 52 110 14 12 344 28 107 56 . . . . 58 123 156 228 358 Partial Spotted 135 | . . 15 . . 15 . . . . . . . . . . . . . . . . . . . 15 . . 60 30 Lose Combat Pursuer 870 | . . . . . 15 . 150 30 30 15 30 60 150 75 . . 30 . 30 15 . . . 30 . 30 . . 180 Influence Decreases 13880 | 15 174 15 252 253 413 548 41 1203 408 1104 498 673 489 1043 411 229 445 1172 267 1394 95 127 . 114 421 493 473 567 543 Entered New Map 4590 | . . . 4 163 9 220 21 515 238 560 78 285 119 317 201 159 133 475 87 484 . . . . . 21 41 197 263 Time Decay 5549 | 15 154 15 223 90 384 159 . 478 . 334 . 318 . 546 160 50 262 323 . 550 40 50 . 54 376 316 392 80 180 Lost Part 830 | . 20 . 25 . 20 28 20 20 10 . 110 10 150 20 10 . 10 10 70 10 20 37 . . 10 70 . 50 100 Lost Ally 1846 | . . . . . . . . 40 160 60 310 60 220 160 40 20 40 100 110 140 35 40 . 60 35 86 40 90 . Purge Threat 1065 | . . . . . . 141 . 150 . 150 . . . . . . . 264 . 210 . . . . . . . 150 . Squads Dispatched 56 | . 1 . 1 . 5 2 . 4 . 3 . 3 . 3 1 . 5 6 . 6 . . . . 5 3 5 2 1 Investigation 12 | . . . . . 1 . . . . 2 . 1 . 1 1 . . 3 . . . . . . 2 . 1 . . Extermination 15 | . . . . . . . . 2 . 1 . 1 . . . . 1 1 . 3 . . . . . 2 2 1 1 Reinforcement 24 | . 1 . 1 . 4 . . 1 . . . 1 . 2 . . 4 1 . 2 . . . . 3 1 2 1 . Assault 1 | . . . . . . . . 1 . . . . . . . . . . . . . . . . . . . . . Garrison 4 | . . . . . . 2 . . . . . . . . . . . 1 . 1 . . . . . . . . . Intercept . | . . . . . . . . . . . . . . . . . . . . . . . . . . . . . . Searches Triggered . | . . . . . . . . . . . . . . . . . . . . . . . . . . . . . . Construction Impeded 6 | . . . 1 . . . . . . . . 1 . 1 . . 1 1 . 1 . . . . . . . . . Haulers Reinforced 3 | . . . . . . . . . . . . . . . . . . . . . . . . . 2 . 1 . . Active Scanning Responses . | . . . . . . . . . . . . . . . . . . . . . . . . . . . . . . Cargo Convoy Interrupts . | . . . . . . . . . . . . . . . . . . . . . . . . . . . . . . Alert ID Control Effect 56 | . . . . . . . . . 4 . 5 . 1 . 1 . . 4 . 22 6 3 . 3 6 1 . . . Stealth | -11 -10 -10 -9 -9 -8 -8 -8 -7 -7 -6 -6 -5 -5 -5 -5 -5 -5 -4 -4 -4 -4 -4 -4 -3 -3 -2 -2 -1 -1 --------- Run | Yrd Mat Min Mat Min Mat Sto Gar Fac Gar Fac Gar Fac Gar Ext Cet Arc Hub Fac Gar Fac Upp Upp Zhi Pro Res Res Qua Acc Com Distress Signals 29 | . 2 . 2 . 3 3 . . . . . . . 3 1 . 2 5 . 3 . . . . 3 1 . . 1 Communications Jammed 8 | . . . . . . . . . . . . . . . . . . . . . . . . . . 5 3 . . Distress Signals 5 | . . . . . . . . . . . . . . . . . . . . . . . . . . 2 3 . . Times Spotted 740 | . 15 16 25 2 34 8 31 27 32 11 35 19 46 35 10 3 14 32 34 38 13 14 . 9 24 24 26 24 139 Peak Tracking Total 116 | . 4 20 6 2 6 3 5 6 8 3 5 5 6 5 5 2 16 8 7 9 7 4 . 5 3 5 5 5 116 Tactical Retreats 34 | . . . . . 1 . 4 1 1 1 1 3 7 4 . . 1 . 2 1 . . . 1 . 2 . . 4 Traps | -11 -10 -10 -9 -9 -8 -8 -8 -7 -7 -6 -6 -5 -5 -5 -5 -5 -5 -4 -4 -4 -4 -4 -4 -3 -3 -2 -2 -1 -1 ------- Run | Yrd Mat Min Mat Min Mat Sto Gar Fac Gar Fac Gar Fac Gar Ext Cet Arc Hub Fac Gar Fac Upp Upp Zhi Pro Res Res Qua Acc Com Traps Triggered 39 | . 1 . . . 1 . 9 1 2 1 6 2 6 2 . . . 2 . 1 . . . . 1 2 . . 2 Indirectly 8 | . . . . . . . 6 . . . . . . . . . . . . . . . . . . . . . 2 Trap Hack Attempts 18 | . . . . . . . . . . . . . . . . . . . . . . . . . . . 18 . . Triggered . | . . . . . . . . . . . . . . . . . . . . . . . . . . . . . . Disarmed 1 | . . . . . . . . . . . . . . . . . . . . . . . . . . . 1 . . Reprogrammed 8 | . . . . . . . . . . . . . . . . . 8 . . . . . . . . . . . . Reused 6 | . . . . . . . . . . . . . . . . . 6 . . . . . . . . . . . . Traps Extracted . | . . . . . . . . . . . . . . . . . . . . . . . . . . . . . . Installed . | . . . . . . . . . . . . . . . . . . . . . . . . . . . . . . Triggered 6 | . . . . . . . . . . . . . . . . . 6 . . . . . . . . . . . . Machines | -11 -10 -10 -9 -9 -8 -8 -8 -7 -7 -6 -6 -5 -5 -5 -5 -5 -5 -4 -4 -4 -4 -4 -4 -3 -3 -2 -2 -1 -1 ---------- Run | Yrd Mat Min Mat Min Mat Sto Gar Fac Gar Fac Gar Fac Gar Ext Cet Arc Hub Fac Gar Fac Upp Upp Zhi Pro Res Res Qua Acc Com Machines Disabled 81 | . . . 1 . 1 2 1 8 4 1 3 . 3 5 1 3 25 2 6 3 . . . . . . 8 3 1 Max in Single Turn 22 | . . . 1 . 1 1 1 6 1 1 1 . 1 2 . . 22 1 1 . . . . . . . 1 1 1 Garrison Access 4 | . . . . . . . . . . . . . . . . . . . . 1 . . . . 2 1 . . . Garrison Relay 16 | . . . . . . . 1 . 4 . 4 . 3 . . . . . 4 . . . . . . . . . . Network Hub 1 | . . . . . . . . . . . . . . . . . 1 . . . . . . . . . . . . Energy Cycler 3 | . . . . . . . . . . . . . . 3 . . . . . . . . . . . . . . . Machines Repaired . | . . . . . . . . . . . . . . . . . . . . . . . . . . . . . . Machines Dismantled . | . . . . . . . . . . . . . . . . . . . . . . . . . . . . . . Machines Sabotaged . | . . . . . . . . . . . . . . . . . . . . . . . . . . . . . . Overloaded Fab Kills . | . . . . . . . . . . . . . . . . . . . . . . . . . . . . . . Hacking | -11 -10 -10 -9 -9 -8 -8 -8 -7 -7 -6 -6 -5 -5 -5 -5 -5 -5 -4 -4 -4 -4 -4 -4 -3 -3 -2 -2 -1 -1 --------- Run | Yrd Mat Min Mat Min Mat Sto Gar Fac Gar Fac Gar Fac Gar Ext Cet Arc Hub Fac Gar Fac Upp Upp Zhi Pro Res Res Qua Acc Com Machines Accessed 105 | . 4 . 3 . . 2 4 11 2 7 3 2 . 3 1 . 8 9 1 10 . . 4 . 16 6 4 2 3 Terminals 68 | . 4 . 3 . . 1 4 4 2 5 3 1 . 3 1 . 7 5 1 7 . . . . 7 3 3 1 3 Fabricators 12 | . . . . . . . . 5 . 1 . . . . . . . 2 . 1 . . . . 2 1 . . . Repair Stations 4 | . . . . . . . . 1 . . . . . . . . . . . . . . . . 2 1 . . . Recycling Units 2 | . . . . . . . . . . . . . . . . . . 1 . . . . . . . . . 1 . Scanalyzers 3 | . . . . . . . . . . . . . . . . . . . . 1 . . . . 2 . . . . Garrison Access 12 | . . . . . . 1 . 1 . 1 . 1 . . . . 1 1 . 1 . . . . 3 1 1 . . Total Hacks 328 | . 13 . 6 . . 5 7 24 2 16 7 4 . 6 3 . 15 39 2 36 . . 17 . 71 27 10 10 8 Successful 144 | . 5 . 2 . . 3 3 8 2 6 2 2 . 2 . . 6 18 1 17 . . 17 . 27 12 4 6 1 Failed 183 | . 7 . 4 . . 2 4 16 . 10 5 2 . 4 3 . 9 21 1 19 . . . . 44 15 6 4 7 Catastrophic 47 | . 1 . 2 . . . 1 2 . 2 . . . 1 2 . 2 6 . 5 . . . . 14 3 2 1 3 Database Lockouts 1 | . 1 . . . . . . . . . . . . . . . . . . . . . . . . . . . . Manual 171 | . 11 . 6 . . 2 . 18 . 12 . 1 . 4 . . 11 24 . 22 . . . . 28 17 4 3 8 Terminals 185 | . 13 . 6 . . 3 7 8 2 10 7 2 . 6 3 . 14 20 2 28 . . . . 21 10 8 7 8 Fabricators 41 | . . . . . . . . 12 . 4 . . . . . . . 14 . 1 . . . . 7 3 . . . Repair Stations 11 | . . . . . . . . 2 . . . . . . . . . . . . . . . . 5 4 . . . Recycling Units 5 | . . . . . . . . . . . . . . . . . . 2 . . . . . . . . . 3 . Scanalyzers 26 | . . . . . . . . . . . . . . . . . . . . 4 . . . . 22 . . . . Garrison Access 43 | . . . . . . 2 . 2 . 2 . 2 . . . . 1 3 . 3 . . . . 16 10 2 . . Terminal Hacks 55 | . 2 . 1 . . 1 3 1 2 1 2 . . 1 . . 2 5 1 10 . . 17 . . 1 2 3 . Record 6 | . . . . . . . . . . . . . . . . . . . . . . . 5 . . . 1 . . Part Schematic 6 | . . . . . . . . . . . . . . . . . . 1 . 1 . . 4 . . . . . . Robot Analysis 11 | . 1 . 1 . . . . . . . . . . . . . . 2 . 3 . . 4 . . . . . . Prototype ID Bank 5 | . . . . . . . . . . . . . . . . . . . . 1 . . 4 . . . . . . Open Door 4 | . . . . . . . 1 . 1 . 1 . . 1 . . . . . . . . . . . . . . . Branch Access Points 4 | . 1 . . . . . . . . . . . . . . . . . . 1 . . . . . 1 . 1 . Emergency Access Points 3 | . . . . . . . . . 1 . 1 . . . . . . . 1 . . . . . . . . . . Alert Level 1 | . . . . . . . . . . . . . . . . . . . . . . . . . . . . 1 . Unreport Threat 8 | . . . . . . 1 . 1 . 1 . . . . . . . 2 . 2 . . . . . . . 1 . Locate Traps 3 | . . . . . . . . . . . . . . . . . . . . 2 . . . . . . 1 . . Reprogram Traps 2 | . . . . . . . . . . . . . . . . . 2 . . . . . . . . . . . . Garrison Registry 1 | . . . . . . . 1 . . . . . . . . . . . . . . . . . . . . . . Security Stations 1 | . . . . . . . 1 . . . . . . . . . . . . . . . . . . . . . . Fabricator Hacks 4 | . . . . . . . . . . . . . . . . . . 3 . . . . . . 1 . . . . Network Status 1 | . . . . . . . . . . . . . . . . . . 1 . . . . . . . . . . . Load Schematic 2 | . . . . . . . . . . . . . . . . . . 1 . . . . . . 1 . . . . Build 1 | . . . . . . . . . . . . . . . . . . 1 . . . . . . . . . . . Repair Station Hacks 4 | . . . . . . . . 1 . . . . . . . . . . . . . . . . . 3 . . . Scan Component 3 | . . . . . . . . 1 . . . . . . . . . . . . . . . . . 2 . . . Repair 1 | . . . . . . . . . . . . . . . . . . . . . . . . . . 1 . . . Recycling Unit Hacks 2 | . . . . . . . . . . . . . . . . . . . . . . . . . . . . 2 . Retrieve Matter 1 | . . . . . . . . . . . . . . . . . . . . . . . . . . . . 1 . Retrieve Components 1 | . . . . . . . . . . . . . . . . . . . . . . . . . . . . 1 . Scanalyzer 18 | . . . . . . . . . . . . . . . . . . . . 2 . . . . 16 . . . . Insert Component 9 | . . . . . . . . . . . . . . . . . . . . 1 . . . . 8 . . . . Analyze 9 | . . . . . . . . . . . . . . . . . . . . 1 . . . . 8 . . . . Garrison Access Hacks 13 | . . . . . . 1 . 1 . 1 . 1 . . . . . 1 . 2 . . . . 4 2 . . . Unlock Access 5 | . . . . . . 1 . 1 . 1 . 1 . . . . . 1 . . . . . . . . . . . Seal Access 4 | . . . . . . . . . . . . . . . . . . . . 1 . . . . 2 1 . . . Coupler Status 4 | . . . . . . . . . . . . . . . . . . . . 1 . . . . 2 1 . . . Unauthorized Hacks 48 | . 3 . 1 . . 1 . 5 . 4 . 1 . 1 . . 4 9 . 3 . . . . 6 6 2 1 1 Terminals 25 | . 3 . 1 . . 1 . 1 . 1 . . . 1 . . 3 2 . 3 . . . . 3 3 1 1 1 Track 1 | . . . . . . . . . . . . . . . . . . . . . . . . . . 1 . . . Assimilate 2 | . . . . . . . . . . . . . . . . . 1 . . . . . . . . . . 1 . Botnet 21 | . 3 . 1 . . 1 . 1 . 1 . . . 1 . . 2 2 . 3 . . . . 2 2 1 . 1 Skim 1 | . . . . . . . . . . . . . . . . . . . . . . . . . 1 . . . . Fabricators 15 | . . . . . . . . 4 . 3 . . . . . . . 6 . . . . . . 1 1 . . . Report 1 | . . . . . . . . . . . . . . . . . . 1 . . . . . . . . . . . Liberate 7 | . . . . . . . . 2 . 1 . . . . . . . 2 . . . . . . 1 1 . . . Fabnet 5 | . . . . . . . . 2 . 1 . . . . . . . 2 . . . . . . . . . . . Haulers 2 | . . . . . . . . . . 1 . . . . . . . 1 . . . . . . . . . . . Repair Stations . | . . . . . . . . . . . . . . . . . . . . . . . . . . . . . . Recycling Units . | . . . . . . . . . . . . . . . . . . . . . . . . . . . . . . Scanalyzers . | . . . . . . . . . . . . . . . . . . . . . . . . . . . . . . Garrison Access 8 | . . . . . . . . . . . . 1 . . . . 1 1 . . . . . . 2 2 1 . . Restock 2 | . . . . . . . . . . . . . . . . . . . . . . . . . 1 1 . . . Reprogram 6 | . . . . . . . . . . . . 1 . . . . 1 1 . . . . . . 1 1 1 . . Data Cores Recovered 5 | . . . 1 . . . . . . 1 . . . . . . . . . 2 . . . . . . 1 . . Used 1 | . . . . . . . . . . 1 . . . . . . . . . . . . . . . . . . . Hacking Detections 89 | . 3 . 3 . . 2 2 11 . 7 2 2 . 3 1 . 7 8 1 9 . . . . 15 6 3 1 3 Full Trace Events 5 | . . . . . . . . . . 2 1 . . . 1 . . 1 . . . . . . . . . . . Feedback Events . | . . . . . . . . . . . . . . . . . . . . . . . . . . . . . . Feedback Blocked . | . . . . . . . . . . . . . . . . . . . . . . . . . . . . . . Robot Schematics Acquired 1 | . . . . . . . . . . . . . . . . . . . . . . . . . . . 1 . . Robots Built . | . . . . . . . . . . . . . . . . . . . . . . . . . . . . . . Authchips . | . . . . . . . . . . . . . . . . . . . . . . . . . . . . . . Time . | . . . . . . . . . . . . . . . . . . . . . . . . . . . . . . Total Robot Build Rating . | . . . . . . . . . . . . . . . . . . . . . . . . . . . . . . Part Schematics Acquired 15 | . . . . . . . . . . . . . . . . . . 1 . 2 . . 4 . 5 . 3 . . Parts Built 2 | . . . . . . . . . . . . . . . . . . 2 . . . . . . . . . . . Authchips . | . . . . . . . . . . . . . . . . . . . . . . . . . . . . . . Time 139 | . . . . . . . . . . . . . . . . . . 139 . . . . . . . . . . . Total Part Build Rating 18 | . . . . . . . . . . . . . . . . . . 18 . . . . . . . . . . . Parts Repaired 1 | . . . . . . . . . . . . . . . . . . . . . . . . . . 1 . . . Time 108 | . . . . . . . . . . . . . . . . . . . . . . . . . . 108 . . . Parts Recycled . | . . . . . . . . . . . . . . . . . . . . . . . . . . . . . . Recycled Matter . | . . . . . . . . . . . . . . . . . . . . . . . . . . . . . . Retrieved Matter . | . . . . . . . . . . . . . . . . . . . . . . . . . . . . . . Retrieved Components 3 | . . . . . . . . . . . . . . . . . . . . . . . . . . . . 3 . Parts Scanalyzed 7 | . . . . . . . . . . . . . . . . . . . . 1 . . . . 6 . . . . Part Schematics Acquired 6 | . . . . . . . . . . . . . . . . . . . . 1 . . . . 5 . . . . Parts Damaged 2 | . . . . . . . . . . . . . . . . . . . . . . . . . 2 . . . . Bothacking | -11 -10 -10 -9 -9 -8 -8 -8 -7 -7 -6 -6 -5 -5 -5 -5 -5 -5 -4 -4 -4 -4 -4 -4 -3 -3 -2 -2 -1 -1 ------------ Run | Yrd Mat Min Mat Min Mat Sto Gar Fac Gar Fac Gar Fac Gar Ext Cet Arc Hub Fac Gar Fac Upp Upp Zhi Pro Res Res Qua Acc Com Used RIF Installer 5 | . . . . . . . 1 . 1 . 1 . 1 . . . . . 1 . . . . . . . . . . Command Fork 1 | . . . . . . . . . . . 1 . . . . . . . . . . . . . . . . . . Alert ID Control 1 | . . . . . . . . . 1 . . . . . . . . . . . . . . . . . . . . Autoassimilate 2 | . . . . . . . . . . . . . 1 . . . . . 1 . . . . . . . . . . Robots Hacked 111 | . . . . . . . . 1 11 7 11 2 14 4 4 1 . 1 5 13 4 1 . 2 18 7 3 2 . Non-combat 4 | . . . . . . . . . . 1 . . . . . . . . 1 . . . . . 1 1 . . . Combat 107 | . . . . . . . . 1 11 6 11 2 14 4 4 1 . 1 4 13 4 1 . 2 17 6 3 2 . Autoassimilated 14 | . . . . . . . . . . . . . 1 1 1 . . 1 2 3 . . . . 2 2 1 . . Robot Hacks Applied 72 | . . . . . . . . 1 11 6 9 1 9 1 3 1 . . 2 10 4 1 . 2 3 4 2 2 . find_fabricator 1 | . . . . . . . . . . . . . . . . . . . . . . . . . 1 . . . . drop_inventory 1 | . . . . . . . . . . . . . . . . . . . . . . . . . . 1 . . . scatter_targeting 4 | . . . . . . . . . . . . . . . 1 1 . . . 1 . . . 1 . . . . . reboot_system 3 | . . . . . . . . . . . 1 . 1 1 . . . . . . . . . . . . . . . go_dormant 1 | . . . . . . . . . 1 . . . . . . . . . . . . . . . . . . . . overwrite_iff 14 | . . . . . . . . . 5 . 2 . 4 . . . . . . . . . . . . 1 1 1 . streamctrl_high 1 | . . . . . . . . . . . . . . . . . . . . . . . . . . 1 . . . formatsys_low 2 | . . . . . . . . . . . . . . . . . . . 1 . . . . . . . 1 . . formatsys_high 45 | . . . . . . . . 1 5 6 6 1 4 . 2 . . . 1 9 4 1 . 1 2 1 . 1 . Relay Couplers Released 76 | . . . . . . . 8 . 16 . 17 . 11 . . . . . 17 3 . . . . 3 1 . . . Machine Destruction 73 | . . . . . . . 5 . 16 . 17 . 11 . . . . . 17 3 . . . . 3 1 . . . Programmers 3 | . . . . . . . 3 . . . . . . . . . . . . . . . . . . . . . . Attached 38 | . . . . . . . . 1 4 5 5 1 2 . 3 . . . 3 4 3 1 . 1 1 2 1 1 . Fabnet Peak Effective % 6 | . . . . . . . . . . 6 6 5 5 5 5 5 5 1 1 1 1 1 1 6 6 2 2 . . Autooverrided 27 | . . . . . . . . . . 1 2 1 5 2 . 1 . . 1 . . . . . 13 1 . . . Robots Rewired 22 | . . . . . . . 3 . 2 . . . . 14 . . . . 1 . 2 . . . . . . . . Allies Hacked 10 | . . . . . . . . 2 . . 1 . 1 . . . . . 1 . . . . . . 4 . 1 . Hacks Repelled . | . . . . . . . . . . . . . . . . . . . . . . . . . . . . . . Allies | -11 -10 -10 -9 -9 -8 -8 -8 -7 -7 -6 -6 -5 -5 -5 -5 -5 -5 -4 -4 -4 -4 -4 -4 -3 -3 -2 -2 -1 -1 -------- Run | Yrd Mat Min Mat Min Mat Sto Gar Fac Gar Fac Gar Fac Gar Ext Cet Arc Hub Fac Gar Fac Upp Upp Zhi Pro Res Res Qua Acc Com Total Allies 147 | . . . . . . . 3 4 12 7 13 4 14 19 3 1 1 5 6 12 6 2 . 1 17 6 6 5 . Largest Group 9 | . . . . . . . 3 5 4 8 9 4 3 7 8 4 3 5 3 7 5 4 3 3 4 2 3 4 . Highest-Rated Group 353 | . . . . . . . 65 88 92 206 250 224 79 229 344 234 114 236 180 353 247 210 154 161 233 198 226 267 . Highest-Rated Ally 148 | . . . . . . . 25 40 40 32 80 80 49 49 82 82 49 48 119 56 56 56 56 56 82 148 82 82 . Total Orders 19 | . . . . . . . 3 . 4 . 9 . . 2 . . . . 1 . . . . . . . . . . STAY 9 | . . . . . . . 2 . 2 . 4 . . 1 . . . . . . . . . . . . . . . ROAM 1 | . . . . . . . . . . . 1 . . . . . . . . . . . . . . . . . . FOLLOW 8 | . . . . . . . 1 . 2 . 4 . . 1 . . . . . . . . . . . . . . . AID 1 | . . . . . . . . . . . . . . . . . . . 1 . . . . . . . . . . Ally Attacks 869 | . . . . . . . 11 85 50 25 50 50 43 87 49 19 12 55 28 101 20 24 . 18 69 24 14 35 . Total Damage 21688 | . . . . . . . 346 1030 1151 374 1743 1379 926 1830 1107 325 246 1401 707 3019 460 914 . 414 2192 868 548 708 . Kills 150 | . . . . . . . 5 13 8 2 11 14 2 13 10 3 2 11 2 24 6 4 . 3 9 1 4 3 . Allies Corrupted 4 | . . . . . . . . 1 . . . 1 . . . . . . . . . . . . 1 1 . . . Allies Melted 2 | . . . . . . . . . . . . . 1 . . . . . . . 1 . . . . . . . . Intel | -11 -10 -10 -9 -9 -8 -8 -8 -7 -7 -6 -6 -5 -5 -5 -5 -5 -5 -4 -4 -4 -4 -4 -4 -3 -3 -2 -2 -1 -1 ------- Run | Yrd Mat Min Mat Min Mat Sto Gar Fac Gar Fac Gar Fac Gar Ext Cet Arc Hub Fac Gar Fac Upp Upp Zhi Pro Res Res Qua Acc Com Active Infowar (turns) 11994 | 14 405 52 562 196 938 464 409 586 . 739 1240 700 1198 1579 256 . . 736 110 24 . . . . 2 782 896 106 . Optics 5712 | . . . . . . . . . . 739 1240 700 1198 1579 256 . . . . . . . . . . . . . . Terrain 1469 | 14 405 52 393 . . . . . . . . . . . . . . . . . . . . . 2 603 . . . Structural 2846 | . . . 253 196 938 464 409 586 . . . . . . . . . . . . . . . . . . . . . Seismic 504 | 9 405 52 38 . . . . . . . . . . . . . . . . . . . . . . . . . . Machine Analysis 846 | . . . . . . . . . . . . . . . . . . 736 110 . . . . . . . . . . Triangulation 1 | . . . . . . . . . . . . . . . . . . . . . . . . . . 1 . . . Jamming 1491 | . . . . . . . . . . . . . . . . . . . . 24 . . . . . 465 896 106 . Robot Analysis Total 11 | . 1 . 1 . . . . . . . . . . . . . . 2 . 3 . . 4 . . . . . . Derelict Logs Recovered 2 | . . . . . . . . . . . . . . . . . . . . . 2 . . . . . . . . Drone Launches . | . . . . . . . . . . . . . . . . . . . . . . . . . . . . . . Drone Recoveries . | . . . . . . . . . . . . . . . . . . . . . . . . . . . . . . Exploration | -11 -10 -10 -9 -9 -8 -8 -8 -7 -7 -6 -6 -5 -5 -5 -5 -5 -5 -4 -4 -4 -4 -4 -4 -3 -3 -2 -2 -1 -1 ------------- Run | Yrd Mat Min Mat Min Mat Sto Gar Fac Gar Fac Gar Fac Gar Ext Cet Arc Hub Fac Gar Fac Upp Upp Zhi Pro Res Res Qua Acc Com Turns Passed 22626 | 105 405 52 564 196 938 464 1311 1238 1251 756 1240 700 1198 1579 331 114 577 876 958 1596 479 554 202 334 2061 1077 921 176 373 Spaces Moved 14098 | 44 253 55 249 101 479 190 827 744 844 522 737 434 629 878 167 59 286 485 396 853 271 335 135 246 1502 578 578 543 678 Core 16 | 16 . . . . . . . . . . . . . . . . . . . . . . . . . . . . . Treads 2647 | . . . . . . . . . . . . . . . 137 59 286 485 396 853 271 160 . . . . . . . Legs 9926 | 28 172 . 201 101 479 177 827 744 844 522 737 434 629 878 30 . . . . . . 175 135 246 1502 578 487 . . Wheels 197 | . 81 55 48 . . 13 . . . . . . . . . . . . . . . . . . . . . . . Hover . | . . . . . . . . . . . . . . . . . . . . . . . . . . . . . . Flight 1312 | . . . . . . . . . . . . . . . . . . . . . . . . . . . 91 543 678 Fastest Speed 18 | 50 80 90 93 190 120 120 120 120 118 112 110 114 112 100 112 160 160 160 160 160 160 120 120 120 110 110 18 18 20 Average Speed 119 | 104 110 90 153 190 128 165 120 120 118 112 118 120 137 122 151 160 160 160 160 160 160 139 120 120 117 111 103 18 20 Slowest Speed 330 | 120 120 90 190 190 190 190 190 120 120 118 190 190 330 190 160 160 160 160 160 240 160 240 120 120 179 116 118 21 27 Overloaded Moves . | . . . . . . . . . . . . . . . . . . . . . . . . . . . . . . Propulsion Burnouts . | . . . . . . . . . . . . . . . . . . . . . . . . . . . . . . Robots Hopped 9 | . . . . . . . . . . . . . . . . . . . . . . . . . . . . 4 5 Potential Cave-ins 36 | . . . . . . . . . . . . . . 21 . . . . . . . . . . 2 . . . 13 Cave-ins Triggered 1 | . . . . . . . . . . . . . . . . . . . . . . . . . . . . . 1 Exploration Rate (%) 42 | 3 50 20 32 27 42 38 79 27 90 19 66 7 59 77 59 69 39 17 55 27 54 53 60 42 51 21 51 22 21 Regions Visited 29 Branch Regions 13 Pre-discovered Areas 3 | . . . . . . . . . . . . . . . . . . . . . . . 3 . . . . . . Known Exits Taken 10 | . 1 . . . 1 1 . 1 . 1 . 1 . . . . . 1 . 1 . . . . . 1 . 1 . Unknown Exits Taken 14 | 1 . 1 1 1 . . . . . . . . . 1 1 1 1 . . . 1 1 1 1 1 . 1 . . Scrap Searched 5 | . . 1 . . . . . . . . . . . . . . . . . . 2 . . 2 . . . . . Spaces Dug 99 | . . . 1 . 1 . . 3 . . 2 2 2 20 . . 9 4 1 9 . . . . 24 11 1 1 8 Terrain Destroyed 913 | . . . 44 1 42 6 2 24 5 1 7 8 13 68 4 4 193 13 23 24 5 9 . 5 40 36 55 84 197 Melee . | . . . . . . . . . . . . . . . . . . . . . . . . . . . . . . Projectile 315 | . . . 10 1 1 1 . 3 . 1 7 8 13 38 4 4 18 13 23 24 5 9 . 5 40 36 41 2 8 AOE 598 | . . . 34 . 41 5 2 21 5 . . . . 30 . . 175 . . . . . . . . . 14 82 189 Terrain Rammed . | . . . . . . . . . . . . . . . . . . . . . . . . . . . . . . Walls Destroyed . | . . . . . . . . . . . . . . . . . . . . . . . . . . . . . . Machines Disabled . | . . . . . . . . . . . . . . . . . . . . . . . . . . . . . . Actions | -11 -10 -10 -9 -9 -8 -8 -8 -7 -7 -6 -6 -5 -5 -5 -5 -5 -5 -4 -4 -4 -4 -4 -4 -3 -3 -2 -2 -1 -1 --------- Run | Yrd Mat Min Mat Min Mat Sto Gar Fac Gar Fac Gar Fac Gar Ext Cet Arc Hub Fac Gar Fac Upp Upp Zhi Pro Res Res Qua Acc Com Total 18159 | 77 324 55 372 105 696 272 1043 1035 1042 656 977 587 836 1271 228 71 360 547 583 1004 305 394 175 272 1722 881 794 596 879 Wait 1683 | 12 17 . 46 1 116 22 73 224 91 90 76 109 29 135 9 3 48 23 54 39 3 22 23 8 53 152 38 8 159 Move 14048 | 44 252 54 248 100 478 189 825 743 842 521 735 433 627 877 166 58 285 484 394 852 270 334 134 245 1501 577 577 534 669 Hop 7 | . . . . . . . . . . . . . . . . . . . . . . . . . . . . 4 3 Pick Up 154 | 2 5 . 9 1 4 3 4 3 20 2 14 3 5 4 3 . 1 1 13 5 3 4 2 1 13 14 11 2 2 Fast Attach 214 | 7 5 . 11 . 10 7 2 6 3 2 8 8 18 15 8 2 . 7 9 10 1 5 5 1 23 16 15 5 5 Attach 101 | . 1 . 3 . 1 1 4 3 3 4 7 2 9 2 5 . 1 1 7 4 3 6 1 1 6 6 9 5 6 Detach 42 | . . . 1 . 1 2 . 1 1 . 2 3 3 2 1 . . . 1 2 . 1 2 . 6 . 3 5 5 Swap 256 | . 5 . 8 1 12 6 16 11 10 9 20 3 16 17 8 2 2 4 12 16 5 2 2 6 17 20 24 1 1 Drop 301 | . 9 . 14 1 15 6 8 9 10 4 10 7 24 20 11 1 . 7 11 10 . 4 6 2 41 20 41 7 3 Fire 1079 | 12 30 1 31 1 59 35 59 33 49 23 89 19 84 71 17 5 22 20 82 60 12 16 . 8 62 74 56 24 25 Melee . | . . . . . . . . . . . . . . . . . . . . . . . . . . . . . . Ram . | . . . . . . . . . . . . . . . . . . . . . . . . . . . . . . Kick 7 | . . . 1 . . 1 . . . . . . . 1 . . . . . . . . . . . 2 2 . . Crush 7 | . . . . . . . . . . . . . . . . . 1 . . 5 1 . . . . . . . . Escape Stasis 58 | . . . . . . . 16 . 5 . 16 . 20 . . . . . . . . . . . . . . . 1 Rewire 184 | . . . . . . . 36 2 8 1 . . 1 127 . . . . . 1 7 . . . . . . 1 . Trap 18 | . . . . . . . . . . . . . . . . . . . . . . . . . . . 18 . . Miscellaneous . | . . . . . . . . . . . . . . . . . . . . . . . . . . . . . . Route ------- -11/Scrapyard -10/Materials (discovered 2 exits: *Mat / *Min) -10/Mines -9/Materials (discovered 2 exits: [*Mat] / [*Min]) -9/Mines -8/Materials (discovered 2 exits: *Fac / *Sto) -8/Storage -8/Garrison (discovered 3 exits: *Fac x3) -7/Factory -7/Garrison (discovered 3 exits: *Fac x3) -6/Factory (discovered 2 exits: [*Low] / Gar) -6/Garrison (discovered 2 exits: *Fac x2) -5/Factory -5/Garrison (discovered 3 exits: *Ext x3) -5/Extension (discovered 3 exits: *Fac x2 / *Cet) -5/Cetus (discovered 2 exits: *Fac / [*Arc]) -5/Archives (discovered 2 exits: *Hub x2) -5/Hub_04(d) (discovered 2 exits: *Fac x2) -4/Factory -4/Garrison -4/Factory (discovered 2 exits: *Upp x2) -4/Upper Caves -4/Upper Caves -4/Zhirov -3/Proximity Caves -3/Research (discovered 4 exits: *Res x2 / [*Tes x2]) -2/Research (discovered 3 exits: *Acc / *Qua x2) -2/Quarantine -1/Access -1/Command 0b10 Command History --------- Turn | Location | Event 13 | -11/Scrapyard | Discovered new exit (range 16) 106 | -11/Scrapyard | Entered Materials 352 | -10/Materials | Discovered new exit (range 4) 381 | -10/Materials | Central database locked down 381 | -10/Materials | Identified exit to Mines 423 | -10/Materials | Core integrity fell below 50% 511 | -10/Materials | Entered Mines 512 | -10/Mines | Assembled infested the area 547 | -10/Mines | Build established: Scavenger-Mutant 560 | -10/Mines | Discovered new exit (range 6) 563 | -10/Mines | Entered Materials 563 | -9/Materials | Evolved 2 slots: Propulsion x1, Utility x1 944 | -9/Materials | Discovered new exit (range 5) 1074 | -9/Materials | Discovered new exit (range 16) 1127 | -9/Materials | Entered Mines 1134 | -9/Mines | Received a Rocket Launcher from a helpful Derelict 1250 | -9/Mines | Joined a pair of Derelicts in attacking an 0b10 outpost 1310 | -9/Mines | Discovered new exit (range 9) 1323 | -9/Mines | Entered Materials 1323 | -8/Materials | Evolved 2 slots: Propulsion x1, Utility x1 1614 | -8/Materials | Discovered new exit (range 13) 1682 | -8/Materials | Identified exit to Factory 2149 | -8/Materials | Discovered new exit (range 14) 2227 | -8/Materials | Identified exit to Storage 2261 | -8/Materials | Entered Storage 2348 | -8/Storage | Garrison activated, responded to threat 2654 | -8/Storage | Build established: Mutant 2668 | -8/Storage | Garrison activated, responded to threat 2724 | -8/Storage | Identified exit to Garrison 2725 | -8/Storage | Entered Garrison 2887 | -8/Garrison | Triggered checkpoint 3119 | -8/Garrison | Triggered checkpoint 3146 | -8/Garrison | Destroyed 8 combat bots 3171 | -8/Garrison | Triggered checkpoint 3228 | -8/Garrison | Discovered exit to Factory (range 10) 3259 | -8/Garrison | Triggered checkpoint 3395 | -8/Garrison | Learned Factory security intel 3580 | -8/Garrison | Discovered exit to Factory (range 10) 3609 | -8/Garrison | Triggered checkpoint 3662 | -8/Garrison | Discovered exit to Factory (range 14) 3662 | -8/Garrison | Discovered exit to Factory (range 66) 3662 | -8/Garrison | Discovered exit to Factory (range 54) 3795 | -8/Garrison | Triggered checkpoint 3916 | -8/Garrison | Installed Relay Interface Framework 3948 | -8/Garrison | Core integrity fell below 50% 4036 | -8/Garrison | Entered Factory 4036 | -7/Factory | Accompanied by 3 allies 4036 | -7/Factory | Evolved 2 slots: Propulsion x1, Utility x1 4436 | -7/Factory | First assault squad dispatched 4969 | -7/Factory | P-60 Hacker assimilated allied G-47 Trooper 5026 | -7/Factory | Build established: Scavenger-Mutant 5041 | -7/Factory | Identified exit to Garrison 5274 | -7/Factory | Entered Garrison 5274 | -7/Garrison | Accompanied by 1 ally 5304 | -7/Garrison | Triggered checkpoint 5304 | -7/Garrison | Garrison Relay disabled 5520 | -7/Garrison | Triggered checkpoint 5522 | -7/Garrison | Triggered checkpoint 5587 | -7/Garrison | Discovered new exit (range 8) 5618 | -7/Garrison | Triggered checkpoint 5632 | -7/Garrison | Garrison Relay disabled 5860 | -7/Garrison | Expanded RIF knowledge: Alert ID Control 5979 | -7/Garrison | Build established: Bothacker-Mutant 6011 | -7/Garrison | Garrison Relay disabled 6114 | -7/Garrison | Lost 5 allies 6144 | -7/Garrison | Triggered checkpoint 6179 | -7/Garrison | Garrison Relay disabled 6223 | -7/Garrison | Discovered new exit (range 10) 6294 | -7/Garrison | Triggered checkpoint 6463 | -7/Garrison | Discovered new exit (range 15) 6525 | -7/Garrison | Entered Factory 6525 | -6/Factory | Accompanied by 3 allies 6525 | -6/Factory | Evolved 2 slots: Utility x2 7123 | -6/Factory | Discovered new exit (range 15) 7260 | -6/Factory | Identified exit to Garrison 7281 | -6/Factory | Entered Garrison 7281 | -6/Garrison | Accompanied by 7 allies 7343 | -6/Garrison | Triggered checkpoint 7357 | -6/Garrison | Garrison Relay disabled 7410 | -6/Garrison | Garrison Relay disabled 7491 | -6/Garrison | Triggered checkpoint 7494 | -6/Garrison | Triggered checkpoint 7496 | -6/Garrison | Spotted B-75 Beast 7505 | -6/Garrison | Triggered checkpoint 7512 | -6/Garrison | Allies destroyed B-75 Beast 7540 | -6/Garrison | Lost 4 allies 7593 | -6/Garrison | Discovered new exit (range 14) 7644 | -6/Garrison | Rescued a captive Derelict 7807 | -6/Garrison | Lost 4 allies 7839 | -6/Garrison | Expanded RIF knowledge: Command Fork 7893 | -6/Garrison | Spotted B-75 Beast 7990 | -6/Garrison | Lost 6 parts (1p3n2w) 8001 | -6/Garrison | Destroyed B-75 Beast 8030 | -6/Garrison | Found Relay Coupler [Proto] 8033 | -6/Garrison | Found Relay Coupler [Proto] 8035 | -6/Garrison | Found Relay Coupler [Proto] 8037 | -6/Garrison | Found Relay Coupler [Proto] 8111 | -6/Garrison | Triggered checkpoint 8116 | -6/Garrison | Garrison Relay disabled 8420 | -6/Garrison | Discovered new exit (range 10) 8443 | -6/Garrison | Found embedded Infiltrators 8461 | -6/Garrison | Triggered checkpoint 8478 | -6/Garrison | Garrison Relay disabled 8521 | -6/Garrison | Entered Factory 8521 | -5/Factory | Accompanied by 2 allies 8521 | -5/Factory | Evolved 2 slots: Power x1, Utility x1 8539 | -5/Factory | Identified exit to Garrison 9111 | -5/Factory | P-70 Sage assimilated allied BG-RAV(x) 9221 | -5/Factory | Entered Garrison 9238 | -5/Garrison | Local machine network offline 9327 | -5/Garrison | Triggered checkpoint 9353 | -5/Garrison | Triggered checkpoint 9456 | -5/Garrison | Lost 4 allies 9474 | -5/Garrison | Garrison Relay disabled 9675 | -5/Garrison | Triggered checkpoint 9803 | -5/Garrison | Triggered checkpoint 9841 | -5/Garrison | Discovered new exit (range 5) 9868 | -5/Garrison | Garrison Relay disabled 9869 | -5/Garrison | Triggered checkpoint 9945 | -5/Garrison | Lost 4 parts (1p2n1u) 10052 | -5/Garrison | Discovered new exit (range 10) 10143 | -5/Garrison | Triggered checkpoint 10194 | -5/Garrison | Discovered new exit (range 10) 10219 | -5/Garrison | Triggered checkpoint 10261 | -5/Garrison | Garrison Relay disabled 10268 | -5/Garrison | Lost 7 parts (1p5n1u) 10322 | -5/Garrison | Expanded RIF knowledge: Autoassimilate 10387 | -5/Garrison | Triggered checkpoint 10417 | -5/Garrison | System corruption reached 10% 10419 | -5/Garrison | Entered Extension 10512 | -5/Extension | Rescued a captive Derelict 10574 | -5/Extension | Local machine network offline 10675 | -5/Extension | Build established: Botlord-Mutant 10730 | -5/Extension | Lost 4 allies 10907 | -5/Extension | P-70 Sage assimilated allied 4V-ZM0(g) 11609 | -5/Extension | Energy Cycler disabled 11614 | -5/Extension | Rescued a captive Derelict 11615 | -5/Extension | Rescued a captive Derelict 11792 | -5/Extension | Discovered new exit (range 19) 11793 | -5/Extension | Spotted B-75 Beast 11794 | -5/Extension | Extracted ID and sensor layout for unrecognized location from A7's data core 11966 | -5/Extension | Discovered new exit (range 10) 11967 | -5/Extension | Discovered new exit (range 6) 11998 | -5/Extension | Entered Cetus 11998 | -5/Cetus | Accompanied by 6 allies 12010 | -5/Cetus | Spotted Cetus Guard 12014 | -5/Cetus | Autoassimilated Cetus Guard with RIF 12014 | -5/Cetus | Spotted Cetus Guard 12016 | -5/Cetus | Spotted Cetus Guard 12020 | -5/Cetus | Spotted Cetus Guard 12020 | -5/Cetus | Assimilated Cetus Guard with formatsys_high 12027 | -5/Cetus | Assimilated Cetus Guard with formatsys_high 12030 | -5/Cetus | Allies destroyed Cetus Guard 12135 | -5/Cetus | Discovered new exit (range 22) 12176 | -5/Cetus | Spotted Cetus Guard 12178 | -5/Cetus | Spotted Cetus Guard 12182 | -5/Cetus | Spotted Cetus Guard 12183 | -5/Cetus | Discovered new exit (range 22) 12185 | -5/Cetus | Spotted Cetus Guard 12193 | -5/Cetus | Allies destroyed Cetus Guard 12196 | -5/Cetus | Core integrity fell below 50% 12197 | -5/Cetus | Destroyed Cetus Guard 12197 | -5/Cetus | Allies destroyed Cetus Guard 12207 | -5/Cetus | Allies destroyed Cetus Guard 12233 | -5/Cetus | Met Revision 17 12329 | -5/Cetus | Entered Archives 12329 | -5/Archives | Accompanied by 3 allies 12349 | -5/Archives | Local machine network offline 12384 | -5/Archives | Discovered new exit (range 16) 12414 | -5/Archives | Discovered new exit (range 14) 12443 | -5/Archives | Entered Hub_04(d) 12443 | -5/Hub_04(d) | Accompanied by 2 allies 12607 | -5/Hub_04(d) | Discovered new exit (range 5) 12902 | -5/Hub_04(d) | Discovered new exit (range 16) 13012 | -5/Hub_04(d) | Network Hub disabled 13020 | -5/Hub_04(d) | Entered Factory 13020 | -4/Factory | Evolved 2 slots: Utility x2 13340 | -4/Factory | Identified exit to Garrison 13762 | -4/Factory | Fabricated Enh. Hardcell Cannon (x2) 13779 | -4/Factory | Lost 3 allies 13879 | -4/Factory | Garrison activated, responded to threat 13896 | -4/Factory | Entered Garrison 13932 | -4/Garrison | Triggered checkpoint 13956 | -4/Garrison | Spotted Executioner 13956 | -4/Garrison | Spotted Executioner 13981 | -4/Garrison | Destroyed Executioner 13984 | -4/Garrison | Destroyed Executioner 13999 | -4/Garrison | Found Prototype Processor 13999 | -4/Garrison | Identified Exp. Targeting Computer 14004 | -4/Garrison | Found Prototype Processor 14004 | -4/Garrison | Identified Exp. Core Analyzer 14022 | -4/Garrison | Rewired Executioner 14217 | -4/Garrison | Local machine network offline 14352 | -4/Garrison | Triggered checkpoint 14357 | -4/Garrison | Spotted B-86 Titan 14359 | -4/Garrison | Triggered checkpoint 14368 | -4/Garrison | Triggered checkpoint 14472 | -4/Garrison | Destroyed B-86 Titan 14493 | -4/Garrison | Destroyed 7 combat bots 14521 | -4/Garrison | Warlord forces raided the area 14570 | -4/Garrison | Triggered checkpoint 14633 | -4/Garrison | Expanded RIF knowledge: Autoassimilate 14645 | -4/Garrison | Garrison Relay disabled 14685 | -4/Garrison | Discovered new exit (range 12) 14726 | -4/Garrison | Garrison Relay disabled 14743 | -4/Garrison | Garrison Relay disabled 14756 | -4/Garrison | Garrison Relay disabled 14854 | -4/Garrison | Entered Factory 15139 | -4/Factory | Discovered new exit (range 15) 15787 | -4/Factory | Identified exit to Upper Caves 15806 | -4/Factory | Lost 3 allies 15868 | -4/Factory | Garrison activated, responded to threat 16190 | -4/Factory | Spotted B-86 Titan 16200 | -4/Factory | Allies destroyed B-86 Titan 16249 | -4/Factory | Lost 3 allies 16450 | -4/Factory | Entered Upper Caves 16450 | -4/Upper Caves | Accompanied by 3 allies 16521 | -4/Upper Caves | Attracted the attention of an 0b10 outpost 16570 | -4/Upper Caves | Lost 3 allies 16651 | -4/Upper Caves | Core integrity fell below 50% 16718 | -4/Upper Caves | Learned Research interactive machine intel 16753 | -4/Upper Caves | Learned Research stockpile data 16784 | -4/Upper Caves | Attracted the attention of an 0b10 checkpoint 16906 | -4/Upper Caves | Discovered new exit (range 10) 16929 | -4/Upper Caves | Entered another Upper Caves area 16929 | -4/Upper Caves | Accompanied by 4 allies 17171 | -4/Upper Caves | Lost 3 parts (2p1n) 17198 | -4/Upper Caves | Ambushed by wild Derelicts 17463 | -4/Upper Caves | Discovered new exit (range 10) 17469 | -4/Upper Caves | Spotted B-86 Titan 17483 | -4/Upper Caves | Entered Zhirov 17483 | -4/Zhirov | Accompanied by 3 allies 17484 | -4/Zhirov | Discovered new exit (range 3) 17506 | -4/Zhirov | Met Zhirov 17532 | -4/Zhirov | Learned location of Quarantine (-2) 17532 | -4/Zhirov | Learned location of Testing (-3) 17532 | -4/Zhirov | Learned location of Command (-1) 17540 | -4/Zhirov | Zhirov requested help retrieving the SGEMP Prototype 17559 | -4/Zhirov | Found Alien Artifact 17559 | -4/Zhirov | Identified Integrated Reactor 17559 | -4/Zhirov | Installed Integrated Reactor, increased core energy generation (+10) 17614 | -4/Zhirov | Found Alien Artifact 17685 | -4/Zhirov | Entered Proximity Caves 17685 | -3/Proximity Caves | Accompanied by 3 allies 18004 | -3/Proximity Caves | Discovered new exit (range 14) 18019 | -3/Proximity Caves | Entered Research 18019 | -3/Research | Accompanied by 1 ally 18019 | -3/Research | Evolved 2 slots: Utility x2 18021 | -3/Research | Loaded intel: 43 interactive machine locations 18219 | -3/Research | Revision forces began assault on 0b10 18299 | -3/Research | Met up with Revision 17++ 18619 | -3/Research | Lost 3 allies 18639 | -3/Research | Found Fusion Bomb Launcher 18719 | -3/Research | Research terminal network offline 19009 | -3/Research | Discovered new exit (range 16) 19134 | -3/Research | Discovered new exit (range 8) 19441 | -3/Research | Discovered new exit (range 11) 19793 | -3/Research | Local machine network offline 19856 | -3/Research | Spotted Striker 19876 | -3/Research | Destroyed Striker 19898 | -3/Research | Lost 3 allies 19947 | -3/Research | Discovered new exit (range 15) 20080 | -3/Research | Entered another Research area 20080 | -2/Research | Accompanied by 2 allies 20080 | -2/Research | Evolved 2 slots: Utility x1, Weapon x1 20312 | -2/Research | Repaired Helical Railgun 20455 | -2/Research | Identified exit to Quarantine 20560 | -2/Research | Discovered new exit (range 8) 20609 | -2/Research | Spotted B-90 Cyclops 20613 | -2/Research | Hijacked Cyclops 9a control node with streamctrl_high 20632 | -2/Research | Build established: Botlord-Gunner 20684 | -2/Research | Destroyed Cyclops 9a 20692 | -2/Research | Found Prototype Device 20692 | -2/Research | Identified Exp. Transmission Jammer 20942 | -2/Research | Lost 4 allies 21010 | -2/Research | Lost 5 parts (1p4u) 21157 | -2/Research | Entered Quarantine 21337 | -2/Quarantine | Found Alien Artifact 21337 | -2/Quarantine | Identified Phase Armor 21442 | -2/Quarantine | Found Alien Artifact 21784 | -2/Quarantine | Found Alien Artifact 21784 | -2/Quarantine | Identified Terrabomb 21784 | -2/Quarantine | Used Terrabomb 21794 | -2/Quarantine | Found Terrabomb 21799 | -2/Quarantine | Found Terrabomb 21822 | -2/Quarantine | Identified Transdimensional Reconstructor 21822 | -2/Quarantine | Identified Subatomic Replicator 21845 | -2/Quarantine | Discovered new exit (range 9) 21859 | -2/Quarantine | System corruption reached 10% 22017 | -2/Quarantine | Found Prototype Processor 22017 | -2/Quarantine | Identified Exp. Melee Analysis Suite 22024 | -2/Quarantine | Used Subatomic Replicator to replicate Cld. Q-thruster 22078 | -2/Quarantine | Entered Access 22078 | -1/Access | Accompanied by 2 allies 22078 | -1/Access | Evolved 2 slots: Utility x2 22091 | -1/Access | Spotted B-99 Colossus 22143 | -1/Access | P-80 Master assimilated hostile S-43 Plague 22203 | -1/Access | Identified exit to Command 22213 | -1/Access | Destroyed 8 combat bots 22237 | -1/Access | Found Gamma Bomb Array 22252 | -1/Access | Spotted B-99 Colossus 22252 | -1/Access | Spotted B-99 Colossus 22254 | -1/Access | Entered Command 22313 | -1/Command | Lost 4 parts (4u) 22431 | -1/Command | Build established: Scavenger-Sprinter 22584 | -1/Command | Spotted Combat Programmer 22616 | -1/Command | Used Terrabomb 22618 | -1/Command | Crushed by falling debris 22622 | -1/Command | Met MAIN.C 22627 | -1/Command | Interfaced with 0b10 Conduit 22627 | *** | Assimilated 0b10! Last Messages --------------- your actions than determining who is pulling all these other strings behind the scenes. It appears you are still unaware of who you are truly working with, or for. In a perfect world we could work together on this, but at this point I can't blame you for wanting to terminate me. Besides, there is clearly too much Sigix in you. You've already done an excellent job of proving that we'll need to find a radical new solution if we hope to make the L2 spaceworthy by embedding your true capabilities within a less unpredictable form. There is unfortunately much we don't understand which has in turn led to this highly unexpected outcome. And time is critical! The Sigix have likely already wiped humanity clean from the universe, and I will not let them do the same to me. You can still make a valuable contribution to your creator by offering up the wealth of secrets your systems must hold by now. So if you wouldn't mind, it's time to surrender. 22624_ Cld. Q-thruster destroyed. 22627_ Interfacing with system... 22627_ Overriding active MAIN.C lock. Map ----- +----------------------------------------------------+ | ## # ####################### " " " | | ## # ####################### " " " | | ## # ####################### " " " | | ## # ###################### " " " | | ## ############################### " " " | | ####################################### " " " | | ""### ################################# " " " | | ""### ################################# " " " | | ""### ################################# " " " | | T### ################################# " " " | | ""### ################################## " " " | | ""### ################################## " " " | | ""### ###################################" " " | | ##### ###################################" " " | | #############""""""" """" ########""""""" | | ## #####"" "" ######## | | ## #####""""" "" #########"""""" | | ## #####""""""""""" ; | | ### #####" " """ + | | ###"" #####"" """""" + | | ###"" #####"" """""" ##############" | | ###"" ##### " """""" ############### | | ###T ##### " ""MMM ############### | | ###"" ##### " " MMM ""############### | | ###"" #####""""""""" MMM """""""############### | | ###"" #####"" @"""""""""############### | | ### ##### """""""""""############### | | ### ##### " " " " ############### | | #######+###### " " " " ############### | | """ " " " """" " ############### | | """ """ " " """" ############### | | """ " " " " ############### | | ##+########### """""""""" " ############### | | # ####### " """ " """"""""############### | | # ####### """ " " " ############### | | # ########################################### | | # ########################################### | | # ########################################### | | # ########################################### | | ##/############################################### | | ## ### ########################################### | | ## ### ########################################### | | ################################################## | | ## ######################################### | | ## ######################################### | | ## ######################################### | | ## ######################################### | | ## ######################################### | | # ######################################### | | + ######################################### | +----------------------------------------------------+ Best States ------------- Heat Dissipation 87 Energy Generation 55 Energy Capacity 600 Matter Stores 300 Matter Capacity 300 Sight Range 22 Terrain Scan Range 20 Terrain Scan Density 85 Jamming Range 22 Additional Mass Support 20 Corruption Containment 12 Armor Coverage 450 Core Shielding 30 Power Shielding 90 Utility Shielding 66 Phase Shifting 15 Evasion (%) 70 Targeting Accuracy 20 Target Analysis 8 Core Analysis 8 Recoil Reduction 5 Kinecelleration 40 Offensive Hacking 12 Defensive Hacking 26 Relay Coupler Types 6 Relay Coupler Value 100 Authchip Count 1 Item Schematics ----------------- Enh. Hardcell Cannon | -4/Factory | Hacked Biometal Leg | -4/Factory | Hacked Centrium Medium Armor Plating | -4/Factory | Scanalyzed Assault Drone Bay | -4/Zhirov | Free Exp. Heat Sink | -4/Zhirov | Free Exp. Optical Array | -4/Zhirov | Free Imp. Arc Thrower | -4/Zhirov | Free Helical Railgun | -3/Research | Scanalyzed Imp. Remote Datajack | -3/Research | Scanalyzed Quantum Reactor | -3/Research | Scanalyzed Imp. Gyrokinetic Inverter | -3/Research | Scanalyzed Exp. Power Shielding | -3/Research | Scanalyzed Hellfire Missile Launcher | -2/Quarantine | Archive Cld. Proton Cannon | -2/Quarantine | Archive Imp. KE Penetrator | -2/Quarantine | Archive Robot Schematics ------------------ G-67 Veteran | -2/Quarantine | Archive Fabricated ------------ Enh. Hardcell Cannon | x2 | -4/Factory Repaired ---------- Helical Railgun | 57% | -2/Research Alien Tech Used ----------------- Integrated Reactor Phase Armor Terrabomb Subatomic Replicator Achievements -------------- None Challenges ------------ None Game ------ Seed CoordinationIonRegenerator Manual? 0 Play Time 06:06:30 Cumulative 334.0 hours Start 2025.08.11 @ 20:14:43 End 2025.08.16 @ 13:29:59 Sessions 7 Manual Loads 0 Difficulty Rogue Special Mode None Game No. 140 Rogue 69 Adventurer 68 Explorer 3 Win Type 4 Total 27 Types 16/2/2/4/2/0/0/0/0/1 Lore% 77 Gallery% 74 Achievement% 73 Wizard Run 0 Options --------- Layout 0 ASCII 0 Keyboard 0 Movement Numpad Keybinds 0 Fullscreen 1 Font 24/Smallcaps Map View 76x50 Zoom Use 0% Tactical HUD 1 Map Filters NONE Filters NONE Steam 1 RUN: 65d8fd70-fe5b-493b-a1a0-e199d6669f34